bitfinex/quotes_SOLUSD_20250514
["timestamp","ask_amount","ask_price","bid_price","bid_amount"]
[1747235422140,138.0,176.54,176.48,27.6099]
[1747235422329,138.0,176.54,176.5,12.12596627]
[1747235422532,138.0,176.54,176.52,12.12596627]
[1747235422917,138.0,176.54,176.53,12.12596627]
[1747235425516,138.0,176.54,176.53,17.7907258]
[1747235425913,138.0,176.54,176.53,12.12596627]
[1747235426640,5.66354001,176.57,176.53,12.12596627]
[1747235426844,143.66320651,176.58,176.54,12.12596627]
[1747235427024,143.66320651,176.58,176.55,12.12596627]
[1747235428724,138.0,176.58,176.55,12.12596627]
[1747235429043,138.0,176.58,176.56,12.12596627]
[1747235429414,137.5,176.58,176.56,12.12596627]
[1747235432151,143.16322965,176.58,176.52,24.3147293]
[1747235432449,143.16322965,176.58,176.51,46.85494333]
[1747235432450,12.31406856,176.57,176.51,46.85494333]
[1747235432634,12.31406856,176.57,176.53,12.12596627]
[1747235433152,12.31406856,176.57,176.51,46.85494333]
[1747235433319,0.18810229,176.57,176.51,46.85494333]
[1747235433521,143.16340344,176.58,176.55,12.12596627]
[1747235433848,137.5,176.58,176.55,12.12596627]
[1747235434660,137.5,176.58,176.56,12.12596627]
[1747235434955,137.5,176.58,176.57,12.12596627]
[1747235435547,137.5,176.58,176.56,12.12596627]
[1747235436833,137.5,176.58,176.54,28.18439123]
[1747235437033,137.5,176.58,176.56,12.12596627]
[1747235437557,143.16315997,176.58,176.56,12.12596627]
[1747235437851,137.5,176.58,176.56,12.12596627]
[1747235438020,137.5,176.58,176.54,22.52]
[1747235438346,137.5,176.58,176.56,12.12596627]
[1747235439233,149.62596627,176.58,176.54,22.52]
[1747235439427,149.62596627,176.58,176.54,34.64596627]
[1747235439632,155.28915255,176.58,176.54,34.64596627]
[1747235439933,143.16318628,176.58,176.55,12.12596627]
[1747235440155,137.5,176.58,176.55,12.12596627]
[1747235441066,143.1632025,176.58,176.55,12.12596627]
[1747235441525,12.31406856,176.57,176.51,22.54]
[1747235441725,12.31406856,176.57,176.52,12.12596627]
[1747235441922,12.12596627,176.56,176.52,12.12596627]
[1747235442144,149.62596627,176.58,176.51,50.70533514]
[1747235442359,149.62596627,176.58,176.54,12.12596627]
[1747235442653,137.5,176.58,176.54,12.12596627]
[1747235442826,137.5,176.58,176.55,12.12596627]
[1747235443343,143.16321284,176.58,176.55,12.12596627]
[1747235444044,143.16321284,176.58,176.54,12.12596627]
[1747235445439,155.28917911,176.58,176.54,12.12596627]
[1747235445774,12.31406856,176.57,176.53,12.12596627]
[1747235446273,0.18810229,176.57,176.53,12.12596627]
[1747235446655,5.85172581,176.57,176.53,12.12596627]
[1747235447364,17.97769208,176.57,176.53,12.12596627]
[1747235447759,12.12596627,176.56,176.5,48.54]
[1747235447952,12.31406856,176.55,176.5,60.66596627]
[1747235448352,12.12596627,176.53,176.5,22.54]
[1747235448766,5.85318273,176.52,176.45,5.66724378]
[1747235449080,12.12596627,176.51,176.47,12.12596627]
[1747235449659,17.979149,176.52,176.47,12.12596627]
[1747235450070,12.12596627,176.51,176.46,22.48]
[1747235450255,12.12596627,176.51,176.46,34.60596627]
[1747235451351,12.12596627,176.51,176.47,12.12596627]
[1747235451679,5.66572237,176.5,176.46,22.48]
[1747235451879,5.66572237,176.5,176.47,12.12596627]
[1747235452181,5.66572237,176.5,176.46,22.48]
[1747235452350,5.66572237,176.5,176.47,12.12596627]
[1747235453677,5.66540139,176.51,176.47,12.12596627]
[1747235454583,137.5,176.54,176.49,12.12596627]
[1747235454870,0.18810229,176.53,176.49,12.12596627]
[1747235455072,0.18810229,176.53,176.51,12.12596627]
[1747235455312,12.12596627,176.57,176.52,12.12596627]
[1747235455574,12.12596627,176.56,176.52,12.12596627]
[1747235455874,5.66411781,176.55,176.52,12.12596627]
[1747235456080,17.97818637,176.55,176.5,12.12596627]
[1747235456454,12.12596627,176.54,176.47,18.64964886]
[1747235456659,149.62596627,176.54,176.5,12.12596627]
[1747235456978,137.5,176.54,176.51,12.12596627]
[1747235457363,137.5,176.54,176.52,12.12596627]
[1747235459051,137.5,176.54,176.53,12.12596627]
[1747235460253,137.5,176.58,176.53,17.79069159]
[1747235460453,137.5,176.58,176.57,12.12596627]
[1747235463708,143.16315551,176.58,176.56,34.56596627]
[1747235463985,155.28912178,176.58,176.52,1.635]
[1747235464160,149.81406856,176.57,176.53,12.12596627]
[1747235464490,149.62596627,176.57,176.53,12.12596627]
[1747235464673,137.5,176.57,176.53,12.12596627]
[1747235465082,0.18810229,176.56,176.53,12.12596627]
[1747235465590,137.5,176.57,176.54,12.12596627]
[1747235465761,137.5,176.57,176.56,12.12596627]
[1747235469372,137.5,176.62,176.57,18.64964886]
[1747235469587,137.5,176.62,176.61,12.12596627]
[1747235469957,137.5,176.62,176.58,22.4]
[1747235470158,143.16188576,176.62,176.58,22.4]
[1747235470585,143.16188576,176.62,176.59,12.12596627]
[1747235471168,0.18810229,176.61,176.58,34.52596627]
[1747235471375,143.16188576,176.62,176.58,22.4]
[1747235471582,143.16188576,176.62,176.58,34.52596627]
[1747235471891,143.16188576,176.62,176.59,12.12596627]
[1747235472086,143.16188576,176.62,176.6,12.12596627]
[1747235472288,137.5,176.62,176.6,12.12596627]
[1747235472582,137.5,176.62,176.61,12.12596627]
[1747235473057,137.5,176.62,176.6,12.12596627]
[1747235473254,143.16195087,176.62,176.6,12.12596627]
[1747235473882,143.16195087,176.62,176.59,12.12596627]
[1747235475403,0.18810229,176.61,176.55,44.82]
[1747235475709,12.31406856,176.61,176.57,12.12596627]
[1747235476399,137.5,176.62,176.6,12.12596627]
[1747235476589,137.5,176.62,176.61,12.12596627]
[1747235481902,137.5,176.67,176.61,17.78805127]
[1747235482089,137.5,176.67,176.64,12.12596627]
[1747235482704,155.28625284,176.67,176.63,12.12596627]
[1747235482905,155.28625284,176.67,176.62,22.34]
[1747235483090,0.18810229,176.66,176.62,34.46596627]
[1747235483488,0.18810229,176.66,176.63,12.12596627]
[1747235484398,149.62596627,176.67,176.63,12.12596627]
[1747235484593,137.5,176.67,176.65,12.12596627]
[1747235485374,137.5,176.67,176.62,40.98964886]
[1747235485574,137.5,176.67,176.64,12.12596627]
[1747235486382,143.16034443,176.67,176.62,22.34]
[1747235486580,12.12596627,176.65,176.59,22.32]
[1747235486782,12.31406856,176.64,176.6,12.12596627]
[1747235487102,0.18810229,176.64,176.6,12.12596627]
[1747235487685,5.84956412,176.64,176.6,12.12596627]
[1747235487903,5.84956412,176.64,176.59,22.32]
[1747235488108,5.66146183,176.64,176.6,12.12596627]
[1747235488490,0.18810229,176.65,176.61,12.12596627]
[1747235488695,17.78686039,176.66,176.62,12.12596627]
[1747235488996,5.66089412,176.66,176.62,12.12596627]
[1747235489309,17.97496268,176.66,176.62,12.12596627]
[1747235490116,5.84899641,176.66,176.62,12.12596627]
[1747235490287,155.28623875,176.67,176.63,12.12596627]
[1747235490612,137.5,176.67,176.63,12.12596627]
[1747235490810,143.16033138,176.67,176.64,12.12596627]
[1747235491384,137.5,176.67,176.65,12.12596627]
[1747235491813,5.65930956,176.7,176.65,12.12596627]
[1747235492110,155.47337812,176.7,176.65,12.12596627]
[1747235492315,12.12596627,176.69,176.62,40.96964886]
[1747235492614,12.12596627,176.69,176.65,12.12596627]
[1747235493030,5.65995019,176.68,176.64,12.12596627]
[1747235493191,12.12596627,176.66,176.62,22.32]
[1747235493392,12.12596627,176.66,176.62,34.44596627]
[1747235493586,12.12596627,176.67,176.63,12.12596627]
[1747235493790,5.84805248,176.68,176.64,12.12596627]
[1747235494089,5.65995019,176.68,176.64,12.12596627]
[1747235494524,5.65995019,176.68,176.66,12.12596627]
[1747235494732,5.84779723,176.69,176.65,12.12596627]
[1747235495833,12.12596627,176.67,176.63,12.12596627]
[1747235496193,12.12596627,176.67,176.62,34.40596627]
[1747235496821,12.12596627,176.67,176.62,12.12596627]
[1747235497121,12.12596627,176.67,176.6,31.66245792]
[1747235497122,12.12596627,176.67,176.63,12.12596627]
[1747235497305,5.66059096,176.66,176.63,12.12596627]
[1747235498116,5.66059096,176.66,176.62,12.12596627]
[1747235498318,17.78655723,176.66,176.62,12.12596627]
[1747235498514,5.66059096,176.66,176.62,12.12596627]
[1747235498720,149.62596627,176.65,176.59,22.32]
[1747235498925,12.31406856,176.64,176.59,34.44596627]
[1747235499222,149.62596627,176.65,176.6,12.12596627]
[1747235499426,143.16113998,176.65,176.61,12.12596627]
[1747235500348,143.16113998,176.65,176.59,22.32]
[1747235500635,143.16113998,176.65,176.61,12.12596627]
[1747235501122,155.28710625,176.65,176.61,12.12596627]
[1747235501418,143.16113998,176.65,176.61,12.12596627]
[1747235501627,155.28710625,176.65,176.61,12.12596627]
[1747235502704,12.12596627,176.62,176.59,22.32]
[1747235503111,12.12596627,176.63,176.59,22.32]
[1747235503425,0.18810229,176.64,176.6,12.12596627]
[1747235503622,0.18810229,176.64,176.59,22.32]
[1747235503811,0.18810229,176.64,176.61,12.12596627]
[1747235504430,5.66155239,176.63,176.61,12.12596627]
[1747235504939,5.66155239,176.63,176.51,8.1294]
[1747235504940,26.0,176.61,176.51,8.1294]
[1747235505098,12.12596627,176.57,176.51,8.1294]
[1747235505440,12.12596627,176.57,176.52,12.12596627]
[1747235505937,12.12596627,176.57,176.51,8.1294]
[1747235506107,12.12596627,176.58,176.54,12.12596627]
[1747235506500,5.66324109,176.58,176.54,12.12596627]
[1747235506732,0.18810229,176.6,176.56,12.12596627]
[1747235506935,17.78887156,176.59,176.52,18.64964886]
[1747235507111,12.31406856,176.58,176.51,34.1294]
[1747235507305,12.31406856,176.58,176.53,12.12596627]
[1747235508231,12.12596627,176.57,176.52,34.36596627]
[1747235508535,5.66347624,176.57,176.53,12.12596627]
[1747235508936,5.66347624,176.57,176.54,12.12596627]
[1747235509337,5.85113529,176.59,176.55,12.12596627]
[1747235509523,12.12596627,176.58,176.54,12.12596627]
[1747235510027,12.31406856,176.57,176.52,34.36596627]
[1747235510334,12.31406856,176.57,176.52,12.12596627]
[1747235510535,5.663797,176.56,176.53,12.12596627]
[1747235510708,5.663797,176.56,176.52,34.36596627]
[1747235511032,5.663797,176.56,176.52,22.24]
[1747235511223,12.12596627,176.54,176.5,12.12596627]
[1747235511418,12.12596627,176.54,176.5,34.34596627]
[1747235511822,12.12596627,176.54,176.5,22.22]
[1747235512126,12.12596627,176.54,176.5,34.34596627]
[1747235512437,12.12596627,176.53,176.5,22.22]
[1747235512646,5.66443865,176.54,176.51,12.12596627]
[1747235513242,5.66383655,176.56,176.53,12.12596627]
[1747235513921,143.16339304,176.58,176.54,12.12596627]
[1747235515413,155.28935931,176.58,176.54,12.12596627]
[1747235515743,143.16339304,176.58,176.55,12.12596627]
[1747235517620,137.5,176.58,176.57,12.12596627]
[1747235518552,5.6621819,176.62,176.57,12.12596627]
[1747235518735,143.16161241,176.63,176.59,12.12596627]
[1747235519132,137.5,176.63,176.6,12.12596627]
[1747235519338,143.161592,176.63,176.6,12.12596627]
[1747235519764,143.161592,176.63,176.59,12.12596627]
[1747235520079,143.161592,176.63,176.6,12.12596627]
[1747235523040,143.161592,176.63,176.61,12.12596627]
[1747235523240,137.5,176.63,176.61,12.12596627]
[1747235523640,143.16157292,176.63,176.61,12.12596627]
[1747235524761,137.5,176.63,176.61,12.12596627]
[1747235525966,26.0,176.68,176.62,12.12596627]
[1747235525967,5.66027056,176.67,176.62,12.12596627]
[1747235526266,5.66027056,176.67,176.64,12.12596627]
[1747235526583,143.1599865,176.68,176.65,12.12596627]
[1747235527867,137.5,176.68,176.66,12.12596627]
[1747235528076,143.16006906,176.68,176.66,12.12596627]
[1747235528276,143.16006906,176.68,176.62,22.16]
[1747235528483,143.16006906,176.68,176.65,12.12596627]
[1747235528690,0.18810229,176.67,176.63,12.12596627]
[1747235529469,155.28603533,176.68,176.63,12.12596627]
[1747235529683,143.16006906,176.68,176.64,12.12596627]
[1747235530280,143.16006906,176.68,176.65,12.12596627]
[1747235530690,137.5,176.68,176.66,12.12596627]
[1747235530992,143.15998939,176.68,176.62,48.16]
[1747235531206,143.15998939,176.68,176.65,12.12596627]
[1747235532384,143.15998939,176.68,176.66,12.12596627]
[1747235534364,143.15998939,176.68,176.65,12.12596627]
[1747235534773,137.5,176.68,176.66,12.12596627]
[1747235535165,137.5,176.68,176.67,12.12596627]
[1747235535352,137.5,176.72,176.67,46.45193254]
[1747235535679,137.5,176.72,176.71,12.12596627]
[1747235535856,5.65776191,176.75,176.71,12.12596627]
[1747235536055,5.8458642,176.75,176.72,12.12596627]
[1747235537049,5.8458642,176.75,176.69,22.12]
[1747235537278,12.12596627,176.74,176.69,22.12]
[1747235537484,32.11610204,176.75,176.7,12.12596627]
[1747235537677,17.97183047,176.75,176.7,12.12596627]
[1747235537864,5.8458642,176.75,176.7,12.12596627]
[1747235538179,17.97183047,176.75,176.7,12.12596627]
[1747235538590,5.8458642,176.75,176.71,12.12596627]
[1747235538962,17.97183047,176.75,176.7,12.12596627]
[1747235539174,32.11610204,176.75,176.7,12.12596627]
[1747235539487,12.12596627,176.71,176.69,22.12]
[1747235539857,19.99013577,176.75,176.69,22.12]
[1747235539858,12.12596627,176.72,176.69,22.12]
[1747235540060,12.12596627,176.73,176.69,22.12]
[1747235540281,0.18810229,176.72,176.69,22.12]
[1747235540470,0.18810229,176.74,176.71,12.12596627]
[1747235541159,5.65832862,176.74,176.71,12.12596627]
[1747235542378,5.65832862,176.74,176.72,12.12596627]
[1747235544985,137.5,176.76,176.73,12.12596627]
[1747235545156,137.5,176.76,176.74,12.12596627]
[1747235545575,137.5,176.76,176.7,5.65929591]
[1747235545576,137.5,176.76,176.75,12.12596627]
[1747235545766,143.15749883,176.76,176.74,12.12596627]
[1747235547085,143.15749883,176.76,176.73,12.12596627]
[1747235549163,143.15749883,176.76,176.72,12.12596627]
[1747235550378,143.15749883,176.76,176.73,12.12596627]
[1747235552693,143.15749883,176.76,176.74,12.12596627]
[1747235553273,143.15749883,176.76,176.69,27.77959518]
[1747235553468,0.18810229,176.75,176.72,12.12596627]
[1747235553781,0.18810229,176.75,176.71,12.12596627]
[1747235554574,0.18810229,176.75,176.72,12.12596627]
[1747235554880,12.31406856,176.75,176.71,12.12596627]
[1747235555078,143.15749883,176.76,176.73,12.12596627]
[1747235556106,12.31406856,176.75,176.71,12.12596627]
[1747235556400,0.18810229,176.75,176.71,12.12596627]
[1747235557297,5.65802874,176.74,176.71,12.12596627]
[1747235557487,5.65802874,176.74,176.72,12.12596627]
[1747235558884,0.18810229,176.75,176.73,12.12596627]
[1747235559081,143.15768548,176.76,176.72,12.12596627]
[1747235559404,155.28365175,176.76,176.72,12.12596627]
[1747235559776,143.15768548,176.76,176.73,12.12596627]
[1747235562604,143.15768548,176.76,176.74,12.12596627]
[1747235562907,143.15768548,176.76,176.75,12.12596627]
[1747235563299,143.15768548,176.76,176.74,12.12596627]
[1747235563595,12.31406856,176.75,176.68,32.1542]
[1747235563797,12.31406856,176.75,176.7,12.12596627]
[1747235564002,12.31406856,176.75,176.71,12.12596627]
[1747235564589,0.18810229,176.75,176.71,12.12596627]
[1747235565112,143.15768548,176.76,176.73,12.12596627]
[1747235565907,143.15768548,176.76,176.74,12.12596627]
[1747235566086,143.15768548,176.76,176.73,12.12596627]
[1747235567609,143.15768548,176.76,176.74,12.12596627]
[1747235568111,143.15768548,176.76,176.73,12.12596627]
[1747235568635,143.15768548,176.76,176.74,12.12596627]
[1747235568790,137.5,176.76,176.75,12.12596627]
[1747235569182,143.15738854,176.76,176.75,12.12596627]
[1747235569675,137.5,176.76,176.75,12.12596627]
[1747235571290,143.15738854,176.76,176.75,12.12596627]
[1747235571792,143.15738854,176.76,176.74,12.12596627]
[1747235572721,143.15738854,176.76,176.71,31.65898092]
[1747235572896,143.15738854,176.76,176.74,12.12596627]
[1747235573084,5.65642853,176.79,176.74,12.12596627]
[1747235573292,5.65642853,176.79,176.75,12.12596627]
[1747235574036,4.20794579,176.78,176.72,18.64964886]
[1747235574190,4.20794579,176.78,176.75,12.12596627]
[1747235575024,5.84453082,176.79,176.76,12.12596627]
[1747235576998,137.5,176.8,176.78,12.12596627]
[1747235577824,137.5,176.8,176.79,12.12596627]
[1747235578398,141.71210516,176.8,176.78,12.12596627]
[1747235578901,141.71210516,176.8,176.79,12.12596627]
[1747235579108,137.5,176.8,176.79,12.12596627]
[1747235581132,12.12596627,176.84,176.79,12.12596627]
[1747235581133,5.65482922,176.84,176.79,12.12596627]
[1747235581304,0.18810229,176.83,176.79,12.12596627]
[1747235582094,4.2080986,176.82,176.79,12.12596627]
[1747235582443,5.65578869,176.81,176.79,12.12596627]
[1747235582801,4.2080986,176.82,176.79,12.12596627]
[1747235582802,9.86366275,176.82,176.79,12.12596627]
[1747235583100,4.2080986,176.82,176.81,12.12596627]
[1747235583618,4.2080986,176.82,176.81,30.77561513]
[1747235583801,4.2080986,176.82,176.81,12.12596627]
[1747235584422,5.65375497,176.88,176.82,5.65546883]
[1747235584635,5.65375497,176.88,176.85,12.12596627]
[1747235584810,5.84185726,176.88,176.86,12.12596627]
[1747235585004,4.1420519,176.87,176.85,12.12596627]
[1747235585225,4.1420519,176.87,176.86,12.12596627]
[1747235586115,143.153347,176.89,176.86,12.12596627]
[1747235586309,143.15332905,176.89,176.82,21.86]
[1747235586513,143.15332905,176.89,176.87,12.12596627]
[1747235586822,143.15332905,176.89,176.86,12.12596627]
[1747235587017,143.15332905,176.89,176.87,12.12596627]
[1747235589032,12.31406856,176.88,176.81,6.074]
[1747235589341,0.18810229,176.88,176.82,21.84]
[1747235589544,0.18810229,176.88,176.85,12.12596627]
[1747235589741,5.65387007,176.87,176.85,12.12596627]
[1747235589917,5.65357074,176.88,176.85,12.12596627]
[1747235590320,5.65357074,176.88,176.86,12.12596627]
[1747235590508,5.65357074,176.88,176.85,12.12596627]
[1747235590708,32.10151537,176.88,176.83,12.12596627]
[1747235591841,12.12596627,176.87,176.82,21.84]
[1747235592043,0.18810229,176.86,176.83,12.12596627]
[1747235593046,0.18810229,176.87,176.83,12.12596627]
[1747235594111,5.65418975,176.86,176.83,12.12596627]
[1747235594825,5.65418975,176.86,176.84,12.12596627]
[1747235595946,5.65397677,176.87,176.84,12.12596627]
[1747235596115,17.77759959,176.94,176.86,12.12596627]
[1747235596426,137.68810229,176.93,176.89,12.12596627]
[1747235596738,137.5,176.93,176.89,12.12596627]
[1747235596934,0.18810229,176.92,176.9,12.12596627]
[1747235597839,137.5,176.93,176.9,12.12596627]
[1747235598041,137.5,176.93,176.91,12.12596627]
[1747235598344,143.15197593,176.93,176.9,12.12596627]
[1747235598515,0.18810229,176.92,176.9,12.12596627]
[1747235599750,12.12596627,176.91,176.86,1.5461]
[1747235600063,0.18810229,176.9,176.86,13.67206627]
[1747235600214,5.84123989,176.9,176.86,1.5461]
[1747235600538,137.5,176.89,176.85,21.78]
[1747235600713,0.18810229,176.88,176.85,21.78]
[1747235601340,0.18810229,176.88,176.85,33.90596627]
[1747235602115,143.15343166,176.89,176.86,12.12596627]
[1747235602315,0.18810229,176.88,176.86,12.12596627]
[1747235602516,0.18810229,176.88,176.85,21.78]
[1747235603151,0.18810229,176.88,176.85,33.90596627]
[1747235604219,5.84188832,176.88,176.85,33.90596627]
[1747235605945,137.5,176.89,176.86,12.12596627]
[1747235606126,143.15330294,176.89,176.86,12.12596627]
[1747235607025,0.18810229,176.88,176.86,12.12596627]
[1747235607226,0.18810229,176.88,176.85,21.78]
[1747235607227,0.18810229,176.88,176.85,33.90596627]
[1747235607834,5.65387007,176.87,176.85,33.90596627]
[1747235610265,5.65387007,176.87,176.85,21.78]
[1747235611132,5.65387007,176.87,176.85,33.90596627]
[1747235611839,5.65450947,176.85,176.78,5.65665109]
[1747235612041,5.65450947,176.85,176.81,12.12596627]
[1747235612560,17.96857803,176.85,176.81,12.12596627]
[1747235612725,5.84261176,176.85,176.82,12.12596627]
[1747235613156,5.65450947,176.85,176.82,12.12596627]
[1747235613925,137.5,176.86,176.84,12.12596627]
[1747235614166,137.5,176.86,176.85,12.12596627]
[1747235614472,137.5,176.86,176.84,12.12596627]
[1747235614632,143.15422182,176.86,176.84,12.12596627]
[1747235615132,137.5,176.86,176.85,12.12596627]
[1747235615451,143.15418975,176.86,176.85,12.12596627]
[1747235615953,137.5,176.86,176.85,12.12596627]
[1747235617242,137.5,176.86,176.84,1.5371]
[1747235617439,137.5,176.86,176.85,12.12596627]
[1747235617845,8.59853131,176.94,176.85,75.4613814]
[1747235618068,8.59853131,176.94,176.9,12.12596627]
[1747235618069,5.83993294,176.94,176.9,12.12596627]
[1747235618237,12.12596627,176.92,176.87,21.74]
[1747235618438,12.12596627,176.92,176.87,33.86596627]
[1747235618668,12.31406856,176.93,176.88,12.12596627]
[1747235619135,5.65227221,176.92,176.86,21.68]
[1747235619334,0.18810229,176.91,176.87,12.12596627]
[1747235619755,12.31406856,176.91,176.86,21.68]
[1747235619943,12.12596627,176.9,176.86,21.68]
[1747235620270,0.18810229,176.89,176.86,21.68]
[1747235620768,0.18810229,176.91,176.87,12.12596627]
[1747235620970,4.13344615,176.89,176.87,12.12596627]
[1747235621542,4.13344615,176.89,176.86,21.68]
[1747235621741,4.13344615,176.89,176.87,12.12596627]
[1747235622176,9.78668015,176.89,176.86,21.68]
[1747235622352,9.97478244,176.89,176.86,21.68]
[1747235623078,4.13344615,176.88,176.86,21.68]
[1747235623238,4.13344615,176.88,176.86,33.80596627]
[1747235625155,5.653234,176.89,176.86,33.80596627]
[1747235625771,17.77920027,176.89,176.84,23.2771]
[1747235626066,17.77920027,176.89,176.85,12.12596627]
[1747235626067,5.653234,176.89,176.85,12.12596627]
[1747235626442,17.77664152,176.97,176.88,12.12596627]
[1747235626643,0.18810229,176.96,176.91,12.12596627]
[1747235626890,0.18810229,176.96,176.92,12.12596627]
[1747235627084,0.18810229,176.96,176.87,26.0]
[1747235627085,12.31406856,176.96,176.91,12.12596627]
[1747235627245,5.65131393,176.95,176.91,12.12596627]
[1747235628491,5.65131393,176.95,176.88,5.65346905]
[1747235628646,5.65131393,176.95,176.91,12.12596627]
[1747235629991,12.31406856,176.94,176.86,6.1592]
[1747235630151,12.31406856,176.94,176.87,12.12596627]
[1747235630152,12.12596627,176.92,176.87,12.12596627]
[1747235630347,0.18810229,176.94,176.91,12.12596627]
[1747235630682,12.12596627,176.98,176.93,12.12596627]
[1747235630860,0.18810229,176.97,176.93,12.12596627]
[1747235631183,0.18810229,176.97,176.92,12.12596627]
[1747235631351,12.31406856,176.97,176.92,12.12596627]
[1747235631749,5.65099457,176.96,176.92,12.12596627]
[1747235632569,5.65099457,176.96,176.9,12.12596627]
[1747235632570,149.81406856,176.95,176.9,12.12596627]
[1747235632872,149.62596627,176.94,176.89,12.12596627]
[1747235633065,137.5,176.93,176.89,12.12596627]
[1747235633978,137.5,176.93,176.88,21.62]
[1747235634191,143.15195688,176.93,176.88,21.62]
[1747235634493,0.18810229,176.92,176.88,12.12596627]
[1747235635259,5.84049793,176.92,176.88,12.12596627]
[1747235635871,137.5,176.91,176.84,8.1593]
[1747235636188,137.68810229,176.9,176.82,12.12596627]
[1747235636355,12.12596627,176.87,176.82,12.12596627]
[1747235636760,12.12596627,176.88,176.83,12.12596627]
[1747235636963,17.26294249,176.88,176.81,21.6]
[1747235637161,22.91681256,176.87,176.82,17.26294249]
[1747235637385,5.65387007,176.87,176.83,17.26294249]
[1747235637790,5.65387007,176.87,176.81,27.25574935]
[1747235638005,5.65387007,176.87,176.83,17.26294249]
[1747235638366,5.65003672,176.99,176.87,8.2084]
[1747235638563,17.26294249,176.93,176.88,17.26294249]
[1747235639090,17.26294249,176.94,176.88,17.26294249]
[1747235639312,23.09220599,176.93,176.87,18.90245096]
[1747235639609,23.09333257,176.93,176.87,18.90357754]
[1747235640105,23.09333257,176.93,176.88,17.25327754]
[1747235640432,5.84005503,176.93,176.89,17.25327754]
[1747235640708,6.51766157,176.98,176.87,1.6503]
[1747235640709,5.65003672,176.99,176.92,17.25327754]
[1747235640927,22.90331426,176.99,176.94,17.25327754]
[1747235642005,17.25327754,176.98,176.93,17.25327754]
[1747235642187,17.44137983,176.97,176.92,17.25327754]
[1747235642576,17.25327754,176.93,176.87,1.6503]
[1747235642827,17.25327754,176.92,176.87,40.48357754]
[1747235642992,17.25327754,176.93,176.88,17.25327754]
[1747235643413,17.25327754,176.94,176.89,17.25327754]
[1747235643712,5.65163332,176.94,176.9,17.25327754]
[1747235644121,5.65163332,176.94,176.87,28.88390888]
[1747235644122,22.90491086,176.94,176.89,17.25327754]
[1747235644283,17.25327754,176.92,176.87,40.48357754]
[1747235644482,17.25327754,176.91,176.87,23.2303]
[1747235644683,0.18810229,176.93,176.91,18.64964886]
[1747235644988,17.25327754,177.0,176.92,38.83327754]
[1747235645191,17.23888566,176.99,176.94,17.23888566]
[1747235645404,5.83718149,177.02,176.92,21.58]
[1747235645598,5.83718149,177.02,176.93,18.64964886]
[1747235645814,23.07606715,177.02,176.97,17.23888566]
[1747235646190,0.18810229,177.02,176.99,17.23888566]
[1747235646409,5.6488388,177.03,176.99,17.23888566]
[1747235646983,5.6488388,177.03,176.96,23.1797]
[1747235647218,5.6488388,177.03,176.99,17.23888566]
[1747235647391,5.64846504,177.04,177.0,17.23888566]
[1747235647798,22.88605078,177.08,177.03,17.23888566]
[1747235648008,5.64716512,177.08,177.03,17.23888566]
[1747235648211,26.0,177.07,177.03,17.23888566]
[1747235648718,43.23888566,177.07,177.02,17.23888566]
[1747235648900,17.42698795,177.06,177.01,17.23888566]
[1747235649617,17.23888566,177.04,176.99,17.23888566]
[1747235649805,17.23888566,177.06,176.99,21.54]
[1747235650010,17.23888566,177.05,177.0,17.23888566]
[1747235650392,17.23888566,177.06,177.01,17.23888566]
[1747235650591,0.18810229,177.07,177.01,17.23888566]
[1747235650817,17.23888566,177.06,177.01,17.23888566]
[1747235651089,17.23888566,177.05,176.99,21.54]
[1747235651317,0.18810229,177.08,176.99,21.54]
[1747235651318,17.23888566,177.04,176.99,21.54]
[1747235651489,17.23888566,177.04,176.99,38.77888566]
[1747235651994,5.64876009,177.03,176.99,38.77888566]
[1747235652407,5.64876009,177.03,177.01,17.23888566]
[1747235652590,5.64812199,177.05,177.01,17.23888566]
[1747235654529,22.88700765,177.05,177.0,17.23888566]
[1747235655239,5.64812199,177.05,177.01,17.23888566]
[1747235655811,5.64812199,177.05,176.99,21.54]
[1747235656014,5.64812199,177.05,177.0,17.23888566]
[1747235656638,5.64812199,177.05,177.01,17.23888566]
[1747235658414,143.1477934,177.07,177.04,17.23888566]
[1747235658639,143.1477934,177.07,177.05,17.23888566]
[1747235660039,14.11552142,177.11,177.05,17.23888566]
[1747235660240,5.64684623,177.09,177.05,17.23888566]
[1747235662923,22.88381933,177.15,177.06,22.60955722]
[1747235663121,22.88381933,177.15,177.06,21.48]
[1747235663122,17.23888566,177.12,177.06,21.48]
[1747235663332,17.23888566,177.11,177.06,38.71888566]
[1747235664052,17.23888566,177.09,177.06,21.48]
[1747235664843,22.88605078,177.08,177.06,21.48]
[1747235665422,22.88605078,177.08,177.03,17.23888566]
[1747235666433,5.64684623,177.09,177.05,17.23888566]